fUSD/lending_fUSD_20241028
["ID","MTS","AMOUNT","RATE_DAILY","PERIOD"]
[340932109,1730127032136,-1071.85,0.00036123,2]
[340932111,1730127032145,-250.0,0.00037331,2]
[340932113,1730127032154,-500.0,0.00037349,2]
[340932114,1730127032164,-23900.0,0.00037369,2]
[340932116,1730127032173,-4079.77,0.00037395,2]
[340932118,1730127032183,-152.0,0.00037426,3]
[340932120,1730127032192,-1623.2,0.00037802,2]
[340932122,1730127032201,-1000.0,0.00037814,2]
[340932124,1730127032210,-250.0,0.0003783,2]
[340932126,1730127032219,-250.0,0.00037878,120]
[340932128,1730127032228,-200.0,0.00037936,2]
[340932130,1730127032237,-179.3,0.00037965,120]
[340932132,1730127032246,-886.78,0.00038069,2]
[340932134,1730127032255,-150.0,0.00038082,7]
[340932136,1730127032266,-177.04,0.0003812,120]
[340932138,1730127032275,-186.371,0.0003812,2]
[340932139,1730127032285,-186.371,0.0003812,2]
[340932141,1730127032294,-186.371,0.0003812,2]
[340932142,1730127032303,-186.371,0.0003812,2]
[340932143,1730127032312,-186.371,0.0003812,2]
[340932144,1730127032321,-186.371,0.0003812,2]
[340932145,1730127032330,-186.371,0.0003812,2]
[340932146,1730127032339,-186.371,0.0003812,2]
[340932147,1730127032348,-186.371,0.0003812,2]
[340932148,1730127032357,-186.371,0.0003812,2]
[340932149,1730127032366,-500.0,0.000383,2]
[340932150,1730127032375,-1071.85,0.00038387,2]
[340932151,1730127032386,-159.33,0.00038407,2]
[340932152,1730127032397,-159.05,0.00038525,2]
[340932153,1730127032406,-156.97,0.0003865,120]
[340932154,1730127032415,-21487.67719498,0.0003888,90]
[340932155,1730127032425,-379.29225,0.0003911,2]
[340932156,1730127032433,-1000.0,0.0003967,2]
[340932157,1730127032442,-159.37,0.00039671,2]
[340932158,1730127032452,-1168.59588778,0.0004,2]
[340932159,1730127032461,-9971.0,0.0004,35]
[340932160,1730127032470,-1071.85,0.00040651,2]
[340932161,1730127032480,-4400.0,0.000409,14]
[340932162,1730127032489,-1000.0,0.0004107,2]
[340932163,1730127032498,-2500.0,0.0004107,2]
[340932164,1730127032508,-157.0,0.00041096,2]
[340932165,1730127032518,-150.0,0.00041096,2]
[340932166,1730127032527,-226.6,0.00041152,2]
[340932167,1730127032536,-186.56173316,0.00041163,28]
[340932168,1730127032545,-5460.2746,0.0004117,2]
[340932169,1730127032555,-1966.6263,0.000412,2]
[340932170,1730127032564,-2149.1037,0.000412,2]
[340932171,1730127032573,-152.0,0.00041252,4]
[340932172,1730127032582,-226.6,0.00041253,2]
[340932173,1730127032591,-3112.76220338,0.0004126,9]
[340932174,1730127032600,-6378.1446,0.00041263,2]
[340932175,1730127032609,-10352.7093,0.00041263,2]
[340932176,1730127032619,-13313.6431,0.0004127,2]
[340932177,1730127032628,-304.35561691,0.00041294,2]
[340932178,1730127032637,-2619.0,0.000413,3]
[340932179,1730127032647,-6225.52440676,0.00041353,9]
[340932180,1730127032656,-177.23,0.0004136,2]
[340932181,1730127032665,-26192.3669,0.00041363,2]
[340932182,1730127032674,-786.2575,0.0004137,2]
[340932183,1730127032684,-226.6,0.00041374,2]
[340932184,1730127032692,-1556.38110169,0.00041383,9]
[340932185,1730127032702,-32684.0031355,0.00041384,9]
[340932186,1730127032711,-241.69177691,0.00041384,2]
[340932187,1730127032721,-226.6,0.00041384,2]
[340932188,1730127032730,-226.6,0.00041384,2]
[340932189,1730127032739,-236.91651428,0.00041393,31]
[340932190,1730127032748,-165.84155999,0.00041393,31]
[340932191,1730127032757,-245000.0,0.00041394,2]
[340932192,1730127032767,-1000.0,0.00041394,2]
[340932193,1730127032776,-66715.39013764,0.0004147,2]
[340932196,1730127037843,-33284.60986236,0.0004147,2]
[340932197,1730127037852,-1438.1884,0.0004147,2]
[340932198,1730127037861,-6711.9823,0.0004147,2]
[340932199,1730127037870,-1255.11,0.00041494,2]
[340932200,1730127037879,-460.028,0.00041494,2]
[340932201,1730127037888,-800.0,0.00041494,2]
[340932202,1730127037898,-576.191,0.00041494,2]
[340932203,1730127037907,-194.661,0.00041494,2]
[340932204,1730127037915,-1981.0,0.00041494,2]
[340932205,1730127037924,-560.733,0.00041494,2]
[340932206,1730127037933,-3366.0,0.00041494,2]
[340932207,1730127037942,-1322.28254632,0.00041494,2]
[340932208,1730127038063,-591.71745368,0.00041494,2]
[340932209,1730127038073,-811.0,0.00041494,2]
[340932210,1730127038082,-1253.0,0.00041494,2]
[340932211,1730127038095,-151.0,0.00041494,14]
[340932212,1730127038104,-150.828,0.00041494,2]
[340932213,1730127038113,-13553.0,0.00041494,2]
[340932214,1730127038122,-5900.609,0.00041494,2]
[340932215,1730127038131,-1185.296,0.00041494,2]
[340932216,1730127038140,-153.803,0.00041494,2]
[340932217,1730127038150,-151.0,0.0004156,14]
[340932218,1730127038158,-85076.42051389,0.0004157,2]
[340932219,1730127038375,-1085.0,0.00041494,2]
[340932221,1730127038384,-1892.97867172,0.0004157,2]
[340932222,1730127038393,-151.0,0.0004157,14]
[340932223,1730127038402,-151.0,0.0004157,14]
[340932224,1730127038411,-304.35561691,0.00041602,2]
[340932225,1730127038420,-8900.0,0.000418,15]
[340932226,1730127038429,-184.45,0.0004187,2]
[340932227,1730127038438,-217.15471137,0.0004188,2]
[340932229,1730127039784,-155.577715,0.0004157,14]
[340932230,1730127039793,-532.192285,0.0004188,2]
[340932231,1730127040218,-1854.89064515,0.0004188,2]
[340932253,1730127045970,-480.91845459,0.000411,2]
[340932254,1730127045980,-13295.98154541,0.0004188,2]
[340932284,1730128232075,-276.28346902,0.00015242,2]
[340932285,1730128232241,-736.88531451,0.00015242,2]
[340932286,1730128232251,-158.4,0.00015342,2]
[340932287,1730128232260,-159.37,0.00015342,2]
[340932288,1730128232269,-159.711936,0.00015973,2]
[340932289,1730128232279,-24.41814227,0.00015989,2]
[340932290,1730128232293,-250.58185773,0.00015989,2]
[340932291,1730128232303,-93.05764227,0.0001599,2]
[340932292,1730128232345,-132780.5313359,0.0001599,2]
[340932293,1730128232355,-94809.82648382,0.00016,2]
[340932294,1730128232364,-250.0,0.00017,2]
[340932295,1730128232373,-300.0,0.00019,2]
[340932296,1730128232383,-176.97,0.00019178,2]
[340932297,1730128232392,-500.0,0.00031911,2]
[340932298,1730128232402,-150.0,0.0003334,2]
[340932299,1730128232412,-448.42,0.00033428,120]
[340932300,1730128232421,-443.39,0.00033469,2]
[340932301,1730128232431,-159.05,0.00033469,2]
[340932302,1730128232440,-23900.0,0.00033536,2]
[340932303,1730128232450,-150.0,0.00033841,2]
[340932304,1730128232459,-1162.7,0.00035057,2]
[340932305,1730128232469,-1160.821,0.00035965,43]
[340932306,1730128232478,-800.0,0.00038239,2]
[340932307,1730128232487,-7500.0,0.00039899,120]
[340932308,1730128232497,-100000.0,0.000399,2]
[340932309,1730128232506,-177.6290233,0.00040341,28]
[340932310,1730128232516,-304.35561691,0.00040441,2]
[340932311,1730128232528,-7500.0,0.0004045,120]
[340932312,1730128232538,-93604.37132973,0.00040451,2]
[340932320,1730128238135,-1013.16878352,0.00015558,2]
[340932321,1730128238145,-957.16,0.00033107,2]
[340932322,1730128238154,-957.16,0.0003537,2]
[340932323,1730128238164,-957.16,0.00037634,2]
[340932324,1730128238173,-957.16,0.00039898,2]
[340932325,1730128238183,-7173.59941648,0.00040451,2]
[340932336,1730128240341,-811.85432495,0.00015873,2]
[340932337,1730128240353,-201.31445857,0.00015873,2]
[340932338,1730128240362,-247.10520296,0.00040451,2]
[340932350,1730128243106,-6173.52389767,0.00039669,120]
[340932351,1730128243262,-1326.47610233,0.00039669,120]
[340932352,1730128243272,-1119.49623903,0.0004045,120]
[340932353,1730128243284,-1773.75051877,0.0004045,120]
[340932354,1730128243310,-155.32438222,0.0004045,120]
[340932355,1730128243320,-2163.61334296,0.00040451,2]
[340932360,1730128800828,-159.58,0.00015342,2]
[340932362,1730129130257,14840.42,0.000101,2]
[340932363,1730129130281,800.0,0.000101,2]
[340932364,1730129130302,800.0,0.000101,2]
[340932365,1730129130321,800.0,0.000101,2]
[340932366,1730129130341,800.0,0.000101,2]
[340932367,1730129130362,800.0,0.000101,2]
[340932368,1730129130382,800.0,0.000101,2]
[340932369,1730129130402,800.0,0.000101,2]
[340932370,1730129130421,800.0,0.000101,2]
[340932371,1730129130442,800.0,0.000101,2]
[340932372,1730129130462,800.0,0.000101,2]
[340932373,1730129130481,300.0,0.000101,2]
[340932374,1730129130505,3332.25350683,0.000101,2]
[340932375,1730129156179,26403.53866087,6.94e-05,2]
[340932377,1730129245468,5074.20787064,0.0001305,2]
[340932396,1730129432142,-832.0,0.0001537,2]
[340932399,1730129432153,-253.99539278,0.00015663,2]
[340932402,1730129432162,-247.06460722,0.000158,5]
[340932404,1730129432213,-3495.77503309,0.000158,5]
[340932405,1730129432262,-657.16035969,0.000158,5]
[340932406,1730129432272,-10.66964031,0.000158,2]
[340932407,1730129432284,-1010.51210735,0.000158,2]
[340932408,1730129432294,-545.12343936,0.000159,5]
[340932409,1730129432306,-6793.082792,0.000159,5]
[340932410,1730129432318,-1461.79376864,0.000159,5]
[340932411,1730129432327,-500.0,0.00015973,2]
[340932412,1730129432337,-12.05083858,0.00015989,2]
[340932413,1730129432349,-287.94916142,0.00015989,2]
[340932414,1730129432360,-1751.06083858,0.0001599,3]
[340932415,1730129432372,-134859.89930942,0.0001599,3]
[340932416,1730129432381,-215.37948298,0.0001599,2]
[340932417,1730129432390,-89433.70043921,0.00016,2]
[340932418,1730129432406,-18373.55279442,0.00016,2]
[340932419,1730129432418,-377.56651928,0.00016,2]
[340932420,1730129432430,-343.1,0.00016,2]
[340932421,1730129432442,-3681.16769562,0.00016,2]
[340932422,1730129432453,-6355.28119319,0.00016,2]
[340932423,1730129432465,-700.0,0.00016,2]
[340932424,1730129432495,-2419.999991,0.00016,2]
[340932600,1730129438215,-13034.77177924,0.00016,2]
[340932601,1730129438256,-500.0,0.00016,2]
[340932602,1730129438302,-12738.94077426,0.00016,2]
[340932603,1730129438344,-253.34417042,0.00016,2]
[340932604,1730129438385,-2238.99168339,0.00016,2]
[340932605,1730129438397,-1084.4175613,0.00016,2]
[340932606,1730129438427,-4645.29615168,0.00016,2]
[340932607,1730129438438,-1353.58223,0.00016,2]
[340932608,1730129438450,-3151.88708974,0.00016,2]
[340932609,1730129438461,-1743.66113836,0.00016,2]
[340932610,1730129438667,-834.47696505,0.000159,2]
[340932611,1730129438677,-50527.70843764,0.00016,2]
[340932612,1730129438688,-792.98054725,0.00016,2]
[340932613,1730129438713,-3735.142385,0.00016,2]
[340932764,1730129440446,-377.28000001,0.00016,2]
[340933044,1730129443262,-6991.44098213,0.00016,2]
[340933061,1730129443343,-726568.29687457,0.00016,2]
[340933066,1730129443358,-15877.78195307,0.00016,2]
[340933105,1730129443560,-274.564,0.00016,2]
[340933406,1730129446550,-137205.99999992,0.00016,2]
[340934382,1730129889862,-161.23,0.00015342,2]
[340934383,1730129889885,-500.0,0.00015973,2]
[340934384,1730129889909,-300.0,0.00015999,2]
[340934385,1730129889941,-15338.77,0.00016,2]
[340934411,1730130632445,-158.4,0.00015342,2]
[340934412,1730130632455,-400.23455417,0.00015729,2]
[340934413,1730130632465,-500.0,0.00015973,2]
[340934414,1730130632475,-9385.77927783,0.0001599,3]
[340934415,1730130632524,-13.24054722,0.0001599,3]
[340934416,1730130632638,-4560.30542951,0.0001599,3]
[340934476,1730130640701,-5354.09162559,0.0001599,3]
[340934477,1730130640714,-362.62233085,0.0001599,3]
[340934478,1730130640723,-5139.3953312,0.00015999,2]
[340934479,1730130640784,-20597.26852598,0.00015999,2]
[340934483,1730130645014,-150.0,0.00015999,2]
[340934497,1730130646727,-24113.33614282,0.00015999,2]
[340934499,1730130646737,-150.0,0.00015999,2]
[340934501,1730130646747,-14163.26385798,0.00016,2]
[340934503,1730130646758,-13741.0,0.00016,2]
[340934683,1730131084018,-381.021769,0.00015265,2]
[340934684,1730131084044,-159.37,0.00015342,2]
[340934685,1730131084069,-509.37228142,0.00015973,2]
[340934686,1730131084094,-284703.22221653,0.00016,2]
[340934726,1730131831516,-303.8241,0.00015242,2]
[340934727,1730131831527,-1049.76405042,0.00016,2]
[340934728,1730131831537,-250.0,0.00017,2]
[340934729,1730131831547,-194.20441966,0.00018,2]
[340934730,1730131831557,-300.0,0.00019,2]
[340934731,1730131831567,-1485.895,0.00019,2]
[340934732,1730131831577,-1253.49777835,0.00021,2]
[340934733,1730131831619,-602.05,0.00021,2]
[340934734,1730131831728,-342.81354,0.00021,2]
[340934753,1730131837643,-469.693,0.00021,2]
[340934754,1730131837656,-1044.39139826,0.00021,2]
[340934755,1730131837669,-4623.3769687,0.00021,7]
[340934756,1730131837680,-350.0,0.00021,2]
[340934757,1730131837691,-400.0,0.00023,2]
[340934758,1730131837701,-1112.04318586,0.00025,2]
[340934759,1730131837711,-1103.82,0.00025431,2]
[340934760,1730131837720,-1000.0,0.00026479,2]
[340934761,1730131837731,-174.91,0.00026968,2]
[340934762,1730131837742,-720.65,0.00027206,2]
[340934763,1730131837752,-200.0,0.00027212,2]
[340934764,1730131837762,-879.66,0.00027213,2]
[340934765,1730131837772,-10514.65365902,0.0002723,2]
[340934766,1730131837788,-13385.34634098,0.0002723,2]
[340934767,1730131837798,-159.33,0.0002723,2]
[340934768,1730131837808,-1874.0,0.00027279,2]
[340934769,1730131837818,-161.87,0.00027306,2]
[340934770,1730131837828,-250.0,0.00027321,2]
[340934771,1730131837839,-172.64,0.00027322,2]
[340934772,1730131837849,-150.0,0.00027324,2]
[340934773,1730131837859,-250.0,0.00027327,2]
[340934774,1730131837870,-1729.07,0.0002733,2]
[340934775,1730131837879,-862.08,0.0002739,2]
[340934776,1730131837889,-326.86,0.00027394,2]
[340934777,1730131837899,-250.0,0.00027397,2]
[340934778,1730131837909,-150.0,0.00027397,7]
[340934779,1730131837919,-2647.81,0.00027529,2]
[340934780,1730131837929,-286.25,0.00027539,2]
[340934781,1730131837940,-1103.82,0.00027695,2]
[340934782,1730131837952,-217.0,0.000278,2]
[340934783,1730131837961,-167.83,0.00027853,2]
[340934784,1730131837971,-181.15,0.00027859,2]
[340934785,1730131837981,-247.0,0.000284,2]
[340934786,1730131837990,-862.08,0.0002876,2]
[340934787,1730131838000,-577.45,0.0002913,2]
[340934788,1730131838011,-577.45,0.00029137,2]
[340934789,1730131838020,-577.45,0.00029145,2]
[340934790,1730131838030,-577.45,0.00029153,2]
[340934791,1730131838040,-577.45,0.0002916,2]
[340934792,1730131838050,-577.45,0.00029168,2]
[340934793,1730131838059,-577.45,0.00029176,2]
[340934794,1730131838069,-577.45,0.00029183,2]
[340934795,1730131838079,-577.45,0.00029191,2]
[340934796,1730131838092,-577.45,0.00029199,2]
[340934797,1730131838102,-577.45,0.00029206,2]
[340934798,1730131838111,-577.45,0.00029214,2]
[340934800,1730131838121,-577.45,0.00029222,2]
[340934802,1730131838130,-577.45,0.00029229,2]
[340934803,1730131838140,-577.45,0.00029237,2]
[340934804,1730131838149,-577.45,0.00029245,2]
[340934805,1730131838159,-577.45,0.00029252,2]
[340934806,1730131838169,-577.45,0.0002926,2]
[340934807,1730131838179,-577.45,0.00029268,2]
[340934808,1730131838188,-577.45,0.00029275,2]
[340934809,1730131838198,-926.69,0.00029589,2]
[340934810,1730131838208,-1000.0,0.00029789,2]
[340934811,1730131838220,-1103.82,0.00029958,2]
[340934812,1730131838231,-159.221,0.0003,2]
[340934813,1730131838240,-159.221,0.0003,2]
[340934814,1730131838250,-159.221,0.0003,2]
[340934815,1730131838259,-159.221,0.0003,2]
[340934816,1730131838270,-159.221,0.0003,2]
[340934817,1730131838280,-159.221,0.0003,2]
[340934818,1730131838292,-159.221,0.0003,2]
[340934819,1730131838304,-159.221,0.0003,2]
[340934820,1730131838315,-159.221,0.0003,2]
[340934821,1730131838326,-159.221,0.0003,2]
[340934822,1730131838336,-862.08,0.00030129,2]
[340934823,1730131838350,-45106.99988506,0.0003088,2]
[340934824,1730131838485,-133187.14038522,0.0003088,2]
[340934825,1730131838496,-751.02926859,0.00031399,15]
[340934826,1730131838507,-862.08,0.00031499,2]
[340934827,1730131838517,-1103.82,0.00032222,2]
[340934828,1730131838527,-751.02926853,0.00032774,15]
[340934829,1730131838537,-862.08,0.00032868,2]
[340934830,1730131838546,-1000.0,0.00033099,2]
[340934831,1730131838556,-751.02926853,0.00034149,15]
[340934832,1730131838566,-1103.82,0.00034486,2]
[340934833,1730131838575,-751.02926853,0.00035524,15]
[340934834,1730131838586,-366.72028885,0.00035731,7]
[340934835,1730131838599,-383.03693413,0.00035731,7]
[340934836,1730131838608,-169.525,0.0003598,43]
[340934837,1730131838617,-1063.214,0.0003598,43]
[340934838,1730131838626,-1000.0,0.00036409,2]
[340934839,1730131838637,-1103.82,0.0003675,2]
[340934840,1730131838646,-751.02926853,0.00036899,15]
[340934841,1730131838656,-538.63859077,0.000379,2]
[340934842,1730131838667,-879.66,0.00038098,2]
[340934843,1730131838678,-751.02926853,0.00038274,15]
[340934844,1730131838687,-625.0,0.00038809,2]
[340934845,1730131838697,-625.0,0.00038809,2]
[340934846,1730131838706,-1103.82,0.00039014,2]
[340934847,1730131838715,-561.0,0.00039542,2]
[340934848,1730131838725,-451.0,0.00039542,2]
[340934849,1730131838734,-661.0,0.00039542,2]
[340934850,1730131838744,-1248.0,0.00039542,2]
[340934851,1730131838754,-557.0,0.00039542,2]
[340934852,1730131838766,-1981.0,0.00039542,2]
[340934853,1730131838776,-1910.0,0.00039542,2]
[340934854,1730131838785,-3360.0,0.00039542,2]
[340934855,1730131838795,-2205.0,0.00039542,2]
[340934856,1730131838804,-809.0,0.00039542,2]
[340934857,1730131838814,-1253.0,0.00039542,2]
[340934858,1730131838823,-297.641,0.00039542,2]
[340934859,1730131838833,-751.02926853,0.00039649,15]
[340934860,1730131838844,-1000.0,0.00039719,2]
[340934861,1730131838854,-16304.1324001,0.000398,2]
[340934862,1730131838863,-173.16266838,0.00039877,2]
[340934863,1730131838874,-3700.0,0.000399,14]
[340934864,1730131838883,-152.0,0.00039977,3]
[340934865,1730131838894,-20040.4103075,0.0003999,9]
[340934866,1730131838905,-406.78764339,0.00039999,31]
[340934867,1730131838915,-208.3019209,0.00039999,31]
[340934868,1730131838924,-84076.01465628,0.0004,10]
[340934869,1730131838934,-1351.0704155,0.0004,120]
[340934870,1730131838944,-5022.453191,0.000403,2]
[340934871,1730131838954,-1821.8554825,0.0004039,9]
[340934872,1730131838963,-397.0,0.000404,26]
[340934873,1730131838973,-220.52005392,0.000404,16]
[340934874,1730131838983,-594.57441885,0.0004045,2]
[340934875,1730131838993,-3340.2914905,0.00040462,2]
[340934876,1730131839003,-1821.8554825,0.00040483,9]
[340934877,1730131839012,-1821.8554825,0.00040489,9]
[340934878,1730131839022,-29149.68772,0.0004049,9]
[340934879,1730131839031,-215.37948299,0.0004049,2]
[340934880,1730131839040,-150.0,0.00040493,7]
[340934881,1730131839050,-150.0,0.00040493,7]
[340934882,1730131839059,-150.0,0.00040493,7]
[340934883,1730131839070,-500.0,0.00040499,2]
[340934884,1730131839081,-506998.02739288,0.000405,15]
[340934888,1730131839740,-1000.0,0.000403,2]
[340934889,1730131839750,-4006.00100004,0.000405,15]
[340935176,1730131842724,-166.16160708,0.000405,15]
[340935178,1730131842734,-151.0,0.000405,14]
[340935181,1730131842745,-5669.05759293,0.000406,7]
[340935183,1730131842757,-5446.66207407,0.000406,7]
[340935185,1730131842769,-2000.0,0.0004089,120]
[340935187,1730131842778,-173.50482493,0.00041,2]
[340935189,1730131842790,-751.02926853,0.00041024,15]
[340935191,1730131842799,-157.0,0.00041096,2]
[340935193,1730131842809,-150.0,0.00041096,2]
[340935195,1730131842818,-480.91845459,0.000411,2]
[340935197,1730131842829,-549.54650794,0.000411,2]
[340935199,1730131842839,-1371.0,0.000411,2]
[340935201,1730131842849,-167.83,0.00041208,2]
[340935203,1730131842858,-1103.82,0.00041278,2]
[340935206,1730131842868,-711.06910592,0.00041369,120]
[340935208,1730131842879,-180.0,0.00041414,10]
[340935210,1730131842889,-151.0,0.00041494,7]
[340935212,1730131842898,-151.0,0.00041494,14]
[340935214,1730131842909,-151.0,0.00041494,14]
[340935216,1730131842918,-151.0,0.00041494,14]
[340935218,1730131842927,-151.0,0.00041494,14]
[340935220,1730131842937,-151.0,0.00041494,14]
[340935222,1730131842946,-151.0,0.00041494,14]
[340935224,1730131842955,-151.0,0.00041494,14]
[340935226,1730131842965,-151.0,0.00041494,14]
[340935228,1730131842975,-151.0,0.00041494,14]
[340935230,1730131842985,-156.218063,0.00041494,14]
[340935232,1730131842994,-151.0,0.00041494,14]
[340935234,1730131843004,-151.0,0.00041494,14]
[340935236,1730131843013,-151.0,0.00041494,14]
[340935238,1730131843023,-151.0,0.00041494,14]
[340935240,1730131843032,-151.0,0.00041494,14]
[340935242,1730131843041,-151.0,0.00041494,14]
[340935244,1730131843051,-152.539754,0.00041494,14]
[340935246,1730131843060,-151.0,0.00041494,14]
[340935248,1730131843070,-151.0,0.00041494,14]
[340935250,1730131843079,-170.038206,0.00041494,14]
[340935252,1730131843089,-151.0,0.00041494,14]
[340935254,1730131843099,-151.0,0.00041494,14]
[340935256,1730131843109,-406.406825,0.00041494,14]
[340935258,1730131843118,-406.406825,0.00041494,14]
[340935260,1730131843128,-151.0,0.00041494,14]
[340935262,1730131843138,-151.0,0.00041494,7]
[340935264,1730131843148,-151.0,0.00041494,14]
[340935266,1730131843157,-2595.05429932,0.00041494,2]
[340935269,1730131843170,-9140.19580627,0.00041494,2]
[340935272,1730131843187,-1382.328402,0.00041494,2]
[340935510,1730131845661,-27478.4,0.00041494,2]
[340935516,1730131845714,-649.41675551,0.00041494,2]
[340935534,1730131845884,-257.500015,0.00041494,2]
[340935572,1730132559137,150.0,0.0001502,2]
[340935573,1730132719949,7820.10482483,9e-05,2]
[340935574,1730132722620,-161.12,0.00015342,2]
[340935575,1730132722643,-798816.86948237,0.00016,2]
[340935576,1730132730338,5109.08731592,0.000101,2]
[340935578,1730132878780,2855.27335965,0.00012579,2]
[340935579,1730132885657,1981846.17332895,0.00015,2]
[340935580,1730132894909,446.29464048,0.0002,2]
[340935581,1730132915558,479.76527907,0.000129,2]
[340935582,1730132918385,6732.46359133,0.00010998,2]
[340935584,1730132927770,182.19876196,0.00013,2]
[340935626,1730133031684,-3471.72591612,0.00022,2]
[340935627,1730133031694,-1330.89259715,0.0002495,2]
[340935628,1730133031704,-500.0,0.00026973,2]
[340935629,1730133031714,-335.55665712,0.00026973,2]
[340935630,1730133031724,-4694.98411558,0.0002699,6]
[340935631,1730133031742,-659.10751022,0.0002699,6]
[340935632,1730133031752,-284.75135037,0.00026999,2]
[340935633,1730133031762,-82.97449424,0.00026999,2]
[340935634,1730133031794,-323.0,0.00026999,2]
[340935635,1730133031910,-23.9882192,0.00026999,2]
[340935636,1730133031921,-7996.68235985,0.00027,7]
[340935685,1730133037685,-309.49678836,0.00026912,2]
[340935686,1730133037695,-4924.48720752,0.00027,7]
[340935693,1730133039861,-415.27420693,0.00027,7]
[340935694,1730133039873,-367.75244836,0.00027,7]
[340935695,1730133039917,-1967.39681913,0.00027,7]
[340935696,1730133039928,-1031.307576,0.00027,7]
[340935699,1730133043021,-5060.10491021,0.00027,7]
[340935700,1730133043038,-68887.0,0.00027,7]
[340935710,1730133045775,-352762.30982965,0.00027,7]
[340935711,1730133045853,-9534.47767603,0.00027,7]
[340935712,1730133045980,-4000.0,0.00027,7]
[340935713,1730133045992,-27549.9692264,0.00027,7]
[340935717,1730133534586,250.0,0.00017,2]
[340935718,1730133535702,300.0,0.00019,2]
[340935721,1730133933395,159.37,0.00015342,2]
[340935746,1730134231963,-350.0,0.00021,2]
[340935747,1730134231973,-160.77206183,0.000229,2]
[340935748,1730134231983,-75.63443817,0.00023,2]
[340936028,1730134237948,-324.36556183,0.00023,2]
[340936029,1730134237959,-36.1671219,0.00023,2]
[340936030,1730134238003,-305.57963322,0.00023,2]
[340936031,1730134238058,-581.0996,0.00023,2]
[340936032,1730134238070,-11232.29328975,0.00023,2]
[340936033,1730134238080,-206.0,0.000266,2]
[340936034,1730134238089,-9276.0429,0.000269,2]
[340936035,1730134238098,-48218.44761034,0.00027,7]
[340936036,1730134238166,-22517.1459715,0.00027,7]
[340936037,1730134238175,-255.0,0.000277,2]
[340936038,1730134238184,-482.69,0.00029428,2]
[340936039,1730134238194,-883.64,0.00029428,2]
[340936040,1730134238203,-194.55,0.00029462,2]
[340936041,1730134238213,-401.31,0.00029505,2]
[340936042,1730134238222,-23900.0,0.00029587,2]
[340936043,1730134238231,-575.93,0.00029656,2]
[340936044,1730134238241,-304.04,0.00029836,2]
[340936045,1730134238250,-202.55,0.00029894,2]
[340936046,1730134238260,-250.0,0.00029916,2]
[340936047,1730134238269,-541.39,0.00030035,2]
[340936048,1730134238278,-200.0,0.00030044,2]
[340936049,1730134238287,-250.0,0.0003016,2]
[340936050,1730134238296,-171.52,0.00030215,2]
[340936051,1730134238305,-150.0,0.0003042,7]
[340936052,1730134238314,-685.75,0.0003042,2]
[340936053,1730134238324,-2704.52,0.00030522,2]
[340936054,1730134238334,-250.0,0.00030561,2]
[340936055,1730134238343,-1133.8,0.00030657,2]
[340936056,1730134238352,-453.92,0.0003075,2]
[340936057,1730134238362,-156.77,0.00030899,2]
[340936058,1730134238373,-1852.42,0.00030922,2]
[340936059,1730134238382,-1000.0,0.00031018,2]
[340936060,1730134238391,-885.780724,0.0003143,15]
[340936061,1730134238401,-173.57601218,0.00031468,2]
[340936062,1730134238410,-199.32594526,0.00031529,2]
[340936063,1730134238419,-398041.91711157,0.0003153,7]